Cogmind - Beta 13 @@@ ROGUE MODE // 2024.04.13 @ 21:50:35 Player: RD-BKR Result: Core destroyed Performance ------------- Evolutions (0) 0 Regions Visited (4) 800 Robots Destroyed (32) 160 Value Destroyed (504) 504 Prototype IDs (23) 460 Alien Tech Used (0) 0 Bonus (268) 268 TOTAL SCORE: 2192 Bonus ------- Aligned with FarCom 300 Friendly Fire -32 Cogmind --------- Core Integrity 0/250 Matter 279/300 Energy 50/125 System Corruption 1% Temperature Critical (546) Movement Treading (240) Ox1 Location -9/Mines Parts ------- > --- POWER (1) -------- Light Ion Engine > --- PROPULSION (2) --- Light Treads Light Treads > --- UTILITY (2) ------ Large Storage Unit Light Armor Plating > --- WEAPON (2) ------- Firepult > --- INVENTORY (15) --- Ion Engine Wheel Medium Storage Unit Structural Scanner ECM Suite Hacking Suite Assault Rifle Light Assault Rifle Light Assault Rifle Grenade Launcher Datajack Hammer Peak State ------------ > --- POWER ------------ Light Ion Engine > --- PROPULSION ------- Light Treads Light Treads > --- UTILITY ---------- Large Storage Unit Light Armor Plating > --- WEAPON ----------- Firepult > --- INVENTORY -------- Ion Engine Wheel Medium Storage Unit High-capacity Storage Unit ECM Suite Hacking Suite Assault Rifle Light Assault Rifle Light Assault Rifle Light Assault Rifle Datajack [Rating: 26] Favorites ----------- Power Light Ion Engine Engine Light Ion Engine Propulsion Light Treads Treads Light Treads Leg Aluminum Leg Utility Large Storage Unit Device Structural Scanner Storage Large Storage Unit Protection Light Armor Plating Weapon Assault Rifle Energy Gun Medium Laser Energy Cannon Firepult Ballistic Gun Assault Rifle Launcher Grenade Launcher Impact Weapon Hammer Special Melee Weapon Datajack Build | -11 -10 -10 -10 -9 ------- Run | Yrd Mat Min Exi Min Slots Evolved . | . . . . . Power . | . . . . . Propulsion . | . . . . . Utility . | . . . . . Weapon . | . . . . . Parts Attached 36 | 2 9 11 3 11 Power 3 | . 2 1 . . Engine 3 | . 2 1 . . Core . | . . . . . Reactor . | . . . . . Propulsion 6 | 2 . 3 . 1 Treads 6 | 2 . 3 . 1 Leg . | . . . . . Wheel . | . . . . . Hover . | . . . . . Flight . | . . . . . Utility 8 | . 2 3 1 2 Device 3 | . 1 1 . 1 Storage 2 | . 1 1 . . Processor . | . . . . . Hackware . | . . . . . Protection 3 | . . 1 1 1 Artifact . | . . . . . Weapon 19 | . 5 4 2 8 Energy Gun . | . . . . . Energy Cannon 3 | . . . . 3 Ballistic Gun 9 | . 4 2 . 3 Ballistic Cannon . | . . . . . Launcher 3 | . 1 1 . 1 Special Weapon . | . . . . . Impact Weapon 3 | . . 1 1 1 Slashing Weapon . | . . . . . Piercing Weapon . | . . . . . Special Melee Weapon 1 | . . . 1 . Unidentified Prototypes . | . . . . . Parts Lost 7 | . 1 6 . . Power 2 | . 1 1 . . Propulsion 3 | . . 3 . . Utility 1 | . . 1 . . Weapon 1 | . . 1 . . Highest Loss Streak 4 | . 1 4 . . To Critical Strikes . | . . . . . Average Slot Usage (%) 96 | . 89 98 100 98 Engine 13 | . 13 13 14 14 Treads 28 | . 28 28 28 28 Device 4 | . 4 7 . 4 Storage 14 | . 14 18 14 14 Protection 6 | . . 2 14 9 Ballistic Gun 20 | . 24 21 1 25 Launcher 1 | . 3 4 . . Impact Weapon 2 | . . 1 13 . Special Melee Weapon 2 | . . . 13 . Naked Turns . | . . . . . Heaviest Build 48 | 11 29 37 29 48 Greatest Support 40 | 40 40 40 40 40 Greatest Overweight (x) 1 | . . . . 1 Average Overweight (x) . | . . . . . Largest Inventory Capacity 15 | 8 15 15 15 15 Average Capacity 14 | 8 14 15 15 15 Most Carried 15 | 6 15 15 15 15 Average Carried 12 | 5 8 13 14 14 Final Capacity 15 | 8 15 15 15 15 Final Carried 15 | 4 15 15 15 12 Class Distribution -------------------- 86% | Mutant 13% | Scavenger-Mutant Dominant Class ---------------- Mutant | -10/Materials Mutant | -10/Mines Mutant | -10/Exiles Mutant | -9/Mines Resources | -11 -10 -10 -10 -9 ----------- Run | Yrd Mat Min Exi Min Matter Collected 953 | 220 336 229 35 133 Remotely . | . . . . . Salvage Created 756 | . 386 198 . 172 Parts 63 | . 31 21 . 11 Haulers Intercepted 1 | . 1 . . . Recyclers Shooed 3 | . 2 . . 1 Parts Field Recycled . | . . . . . Retrieved Matter . | . . . . . Parts Self-Destructed . | . . . . . Prevented . | . . . . . Kills | -11 -10 -10 -10 -9 ------- Run | Yrd Mat Min Exi Min Combat Hostiles Destroyed 27 | . 14 10 . 3 Guns 18 | . 11 7 . . AOE 8 | . 3 2 . 3 Classes Destroyed 9 | . 4 2 . 3 Worker 2 | . . . . 2 Builder 4 | . . 3 . 1 Tunneler 1 | . . . . 1 Hauler 1 | . 1 . . . Recycler 1 | . . . . 1 Operator 1 | . 1 . . . Swarmer 15 | . 9 3 . 3 Grunt 7 | . 5 2 . . Assembled 5 | . . 5 . . Best Kill Streak 4 | . 3 3 . 4 Combat Bots Only 3 | . 3 3 . 3 Max Kills in Single Turn 3 | . 3 2 . 3 Gunslinging 1 | . 1 . . . Exploded 3 | . 3 2 . 3 Melee . | . . . . . Uniques/NPCs Destroyed . | . . . . . Combat | -11 -10 -10 -10 -9 -------- Run | Yrd Mat Min Exi Min Hostile Shots Fired 125 | . 58 61 . 6 Missed 25 | . 15 9 . 1 Damage Taken 1281 | . 494 707 . 80 Core 290 | . 90 158 . 42 Absorbed by Shields . | . . . . . Redirected to Shielding 5 | . . 5 . . Core Remaining (%) 100 | 100 . . . . Volleys Fired 99 | . 58 29 . 12 Largest 2 | . 2 2 . 2 Hottest 250 | . 50 50 . 250 Shots Fired 168 | . 99 52 . 17 Gun 160 | . 97 51 . 12 Cannon 5 | . . . . 5 Launcher 3 | . 2 1 . . Special . | . . . . . Kinetic 160 | . 97 51 . 12 Thermal 5 | . . . . 5 Explosive 3 | . 2 1 . . Electromagnetic . | . . . . . Robot Hit Streak 8 | . 8 7 . 8 Robot Miss Streak 11 | . 11 3 . 6 Penetration Max . | . . . . . Secondary Targets 2 | . 2 . . . Max Gunslinging Chain 1 | . 1 . . . Shots Hit Robots 99 | . 53 34 . 12 Core Hits 49 | . 24 17 . 8 Critical Kills . | . . . . . Critical Parts Destroyed 2 | . . 2 . . Critical Strikes 2 | . . 2 . . Destroy 1 | . . 1 . . Smash 1 | . . 1 . . Melee Attacks 19 | . . 8 . 11 Impact 19 | . . 8 . 11 Slashing . | . . . . . Piercing . | . . . . . Sneak Attacks 2 | . . . . 2 Combat Hostiles . | . . . . . Follow-up Attacks . | . . . . . Damage Inflicted 1648 | . 758 551 . 339 Guns 1116 | . 633 400 . 83 Cannons . | . . . . . Explosions 355 | . 125 87 . 143 Melee 160 | . . 51 . 109 Ramming 17 | . . 13 . 4 Kinetic 1116 | . 633 400 . 83 Thermal 143 | . . . . 143 Explosive 212 | . 125 87 . . Electromagnetic . | . . . . . Impact 160 | . . 51 . 109 Slashing . | . . . . . Piercing . | . . . . . Highest Corruption 1 | . 1 1 1 1 Average Corruption 1 | . 1 1 1 1 Corruption Purged . | . . . . . Corruption Blocked . | . . . . . Effects 32 | . 7 7 4 14 Message Errors 7 | . 2 . 1 4 Matter Fused 6 | . 1 . 2 3 Heat Flow Errors 6 | . 1 2 . 3 Energy Discharges 6 | . 1 3 . 2 Data Loss (minor) 6 | . 2 2 1 1 Misfires 1 | . . . . 1 Overload Shots . | . . . . . Overflow Damage 120 | . 9 43 . 68 Projectiles . | . . . . . Explosions 23 | . 9 10 . 4 Melee 97 | . . 33 . 64 Knockbacks 1 | . . . . 1 Impact 1 | . . . . 1 Kinetic . | . . . . . Secondary . | . . . . . Self-Inflicted Damage 34 | . 11 23 . . Shots 2 | . 1 1 . . Rammed 6 | . . 4 . 2 Targets Rammed 6 | . . 4 . 2 Kicked . | . . . . . Crushed . | . . . . . Highest Temperature 597 | . 165 247 . 597 Average Temperature 91 | . 27 62 . 135 Received Heat Transfer 772 | . 162 610 . . Effects 2 | . . . . 2 Damage (minor) 1 | . . . . 1 Damage (core) 1 | . . . . 1 Siege Activations . | . . . . . Robots Corrupted . | . . . . . Combat Hostiles . | . . . . . Parts Fried 3 | . . . . 3 Impact Corruptions 4 | . . 1 . 3 Robots Melted . | . . . . . Combat Hostiles . | . . . . . Parts Melted 1 | . . . . 1 Heat Transferred 660 | . . . . 660 Parts Sabotaged . | . . . . . Parts Stolen . | . . . . . Parts Stripped . | . . . . . Power Chain Reactions . | . . . . . Alert | -11 -10 -10 -10 -9 ------- Run | Yrd Mat Min Exi Min Peak Influence 274 | . 274 148 . 151 Initial 69 | . . 69 . . Average 50 | . 112 73 . 4 Maximum Alert Level 1 | . 1 . . . Low Security (%) 94 | 100 81 100 . 100 Level 1 5 | . 18 . . . Level 2 . | . . . . . Level 3 . | . . . . . Level 4 . | . . . . . Level 5 . | . . . . . High Security . | . . . . . Max Security . | . . . . . Squads Dispatched 2 | . 2 . . . Investigation 1 | . 1 . . . Extermination . | . . . . . Reinforcement 1 | . 1 . . . Assault . | . . . . . Garrison . | . . . . . Intercept . | . . . . . Searches Triggered . | . . . . . Construction Impeded . | . . . . . Haulers Reinforced . | . . . . . Active Scanning Responses . | . . . . . Cargo Convoy Interrupts . | . . . . . Stealth | -11 -10 -10 -10 -9 --------- Run | Yrd Mat Min Exi Min Distress Signals 1 | . 1 . . . Communications Jammed . | . . . . . Distress Signals . | . . . . . Times Spotted 42 | . 27 15 . . Peak Tracking Total 8 | . 4 8 . 4 Tactical Retreats 4 | . 1 3 . . Traps | -11 -10 -10 -10 -9 ------- Run | Yrd Mat Min Exi Min Traps Triggered 1 | . 1 . . . Indirectly . | . . . . . Trap Hack Attempts . | . . . . . Triggered . | . . . . . Disarmed . | . . . . . Reprogrammed . | . . . . . Reused . | . . . . . Traps Extracted . | . . . . . Installed . | . . . . . Triggered . | . . . . . Machines | -11 -10 -10 -10 -9 ---------- Run | Yrd Mat Min Exi Min Machines Disabled 5 | . 2 . . 3 Max in Single Turn 2 | . 2 . . 2 Machines Repaired . | . . . . . Machines Dismantled . | . . . . . Machines Sabotaged . | . . . . . Overloaded Fab Kills . | . . . . . Hacking | -11 -10 -10 -10 -9 --------- Run | Yrd Mat Min Exi Min Machines Accessed 12 | . 10 . 2 . Terminals 7 | . 7 . . . Fabricators . | . . . . . Repair Stations 1 | . 1 . . . Recycling Units 2 | . 2 . . . Scanalyzers . | . . . . . Garrison Access . | . . . . . Total Hacks 54 | . 30 . 24 . Successful 39 | . 15 . 24 . Failed 15 | . 15 . . . Catastrophic 3 | . 3 . . . Database Lockouts . | . . . . . Manual 19 | . 17 . 2 . Terminals 21 | . 21 . . . Fabricators . | . . . . . Repair Stations 2 | . 2 . . . Recycling Units 7 | . 7 . . . Scanalyzers . | . . . . . Garrison Access . | . . . . . Terminal Hacks 31 | . 7 . 24 . Record 23 | . . . 23 . Terminal Index 1 | . 1 . . . Locate Traps 3 | . 3 . . . Hauler Manifests 1 | . 1 . . . Zone Layout 2 | . 2 . . . Derelict Proto ID Bank 1 | . . . 1 . Fabricator Hacks . | . . . . . Repair Station Hacks 1 | . 1 . . . Scan Component 1 | . 1 . . . Recycling Unit Hacks 3 | . 3 . . . Report Inventory 2 | . 2 . . . Retrieve Components 1 | . 1 . . . Scanalyzer . | . . . . . Garrison Access Hacks . | . . . . . Unauthorized Hacks 4 | . 4 . . . Terminals 2 | . 2 . . . Assimilate 1 | . 1 . . . Operators 1 | . 1 . . . Fabricators . | . . . . . Repair Stations 1 | . 1 . . . Mechanics 1 | . 1 . . . Recycling Units 1 | . 1 . . . Recyclers 1 | . 1 . . . Scanalyzers . | . . . . . Garrison Access . | . . . . . Data Cores Recovered . | . . . . . Used . | . . . . . Hacking Detections 8 | . 8 . . . Full Trace Events 1 | . 1 . . . Feedback Events 1 | . 1 . . . Corruption 1 | . 1 . . . Feedback Blocked . | . . . . . Robot Schematics Acquired . | . . . . . Robots Built . | . . . . . Authchips . | . . . . . Time . | . . . . . Total Robot Build Rating . | . . . . . Part Schematics Acquired . | . . . . . Parts Built . | . . . . . Authchips . | . . . . . Time . | . . . . . Total Part Build Rating . | . . . . . Parts Repaired . | . . . . . Time . | . . . . . Parts Recycled . | . . . . . Recycled Matter . | . . . . . Retrieved Matter . | . . . . . Retrieved Components 9 | . 9 . . . Parts Scanalyzed . | . . . . . Part Schematics Acquired . | . . . . . Parts Damaged . | . . . . . Bothacking | -11 -10 -10 -10 -9 ------------ Run | Yrd Mat Min Exi Min Used RIF Installer . | . . . . . Robots Hacked . | . . . . . Non-combat . | . . . . . Combat . | . . . . . Robot Hacks Applied . | . . . . . Relay Couplers Released . | . . . . . Fabnet Peak Effective % . | . . . . . Robots Rewired . | . . . . . Allies Hacked . | . . . . . Hacks Repelled . | . . . . . Allies | -11 -10 -10 -10 -9 -------- Run | Yrd Mat Min Exi Min Total Allies 1 | . 1 . . . Largest Group 1 | . 1 1 . . Highest-Rated Group 10 | . 10 8 . . Highest-Rated Ally 10 | . 10 8 . . Total Orders . | . . . . . Ally Attacks . | . . . . . Total Damage . | . . . . . Kills . | . . . . . Allies Corrupted . | . . . . . Allies Melted . | . . . . . Intel | -11 -10 -10 -10 -9 ------- Run | Yrd Mat Min Exi Min Robot Analysis Total . | . . . . . Derelict Logs Recovered 2 | . . 1 . 1 Drone Launches . | . . . . . Drone Recoveries . | . . . . . Exploration | -11 -10 -10 -10 -9 ------------- Run | Yrd Mat Min Exi Min Turns Passed 4713 | 16 1200 799 718 1980 Spaces Moved 2266 | 9 534 356 441 926 Core . | . . . . . Treads 2262 | 5 534 356 441 926 Legs 4 | 4 . . . . Wheels . | . . . . . Hover . | . . . . . Flight . | . . . . . Fastest Speed 120 | 120 160 160 160 160 Average Speed 160 | 142 160 160 160 161 Slowest Speed 240 | 160 160 160 160 240 Overloaded Moves . | . . . . . Propulsion Burnouts . | . . . . . Robots Hopped . | . . . . . Cave-ins Triggered . | . . . . . Exploration Rate (%) 60 | 2 84 74 59 81 Regions Visited 4 Branch Regions 3 Pre-discovered Areas 1 | . . . 1 . Known Exits Taken 1 | . . . 1 . Unknown Exits Taken 3 | 1 1 1 . . Scrap Searched 5 | . . 1 . 4 Spaces Dug 30 | . . 11 . 19 Terrain Destroyed 58 | . 8 11 . 39 Melee 2 | . . 2 . . Projectile 4 | . . . . 4 AOE 52 | . 8 9 . 35 Terrain Rammed . | . . . . . Walls Destroyed . | . . . . . Machines Disabled . | . . . . . Actions | -11 -10 -10 -10 -9 --------- Run | Yrd Mat Min Exi Min Total 3147 | 12 787 516 456 1376 Wait 664 | . 166 101 . 397 Move 2262 | 8 533 355 440 926 Hop . | . . . . . Pick Up 33 | . 15 6 6 6 Fast Attach 3 | . 2 1 . . Attach 12 | . 1 6 . 5 Detach 2 | . . 1 . 1 Swap 21 | 2 6 4 3 6 Drop 26 | 2 6 1 7 10 Fire 99 | . 58 29 . 12 Melee 19 | . . 8 . 11 Ram . | . . . . . Kick . | . . . . . Crush 6 | . . 4 . 2 Escape Stasis . | . . . . . Rewire . | . . . . . Trap . | . . . . . Miscellaneous . | . . . . . Route ------- -11/Scrapyard -10/Materials (discovered 5 exits: [*Mat x3] / [*Min x2]) -10/Mines (discovered 3 exits: [*Mat x2] / *Exi) -10/Exiles (discovered 2 exits: *Min x2) -9/Mines (discovered 1 exit: [*Mat]) History --------- Turn | Location | Event 1 | -11/Scrapyard | Discovered new exit (range 3) 17 | -11/Scrapyard | Entered Materials 201 | -10/Materials | Discovered new exit (range 6) 286 | -10/Materials | Discovered new exit (range 9) 303 | -10/Materials | Build established: Mutant 532 | -10/Materials | Discovered new exit (range 7) 780 | -10/Materials | Discovered new exit (range 8) 1108 | -10/Materials | Discovered new exit (range 16) 1217 | -10/Materials | Entered Mines 1217 | -10/Mines | Accompanied by 1 ally 1320 | -10/Mines | Discovered new exit (range 4) 1394 | -10/Mines | Discovered new exit (range 5) 1440 | -10/Mines | Assembled infested the area 1459 | -10/Mines | Core integrity fell below 50% 1504 | -10/Mines | Lost 4 parts (2n1u1w) 1505 | -10/Mines | Core integrity fell below 20% 1877 | -10/Mines | A weapon hastily lodged in a ceiling crevice suddenly fell to the ground 2010 | -10/Mines | Deemed a non-threat by the Exiles lab entrance 2010 | -10/Mines | Discovered new exit (range 5) 2016 | -10/Mines | Entered Exiles 2017 | -10/Exiles | Identified exit to Mines 2055 | -10/Exiles | Met 8R-AWN 2187 | -10/Exiles | Met EX-HEX 2231 | -10/Exiles | Met EX-BIN 2248 | -10/Exiles | Aligned with FarCom system 2250 | -10/Exiles | Given EX-Vault access code 2288 | -10/Exiles | Opened EX-Vault 2306 | -10/Exiles | Found Longsword +1 2339 | -10/Exiles | Warned to stay clear of 0b10 Research branches 2391 | -10/Exiles | Found Firepult 2471 | -10/Exiles | Met EX-DEC 2509 | -10/Exiles | Learned location of Zion (-7) 2734 | -10/Exiles | Left Exiles lab with Firepult 2734 | -10/Exiles | Entered Mines 2766 | -9/Mines | Learned Materials stockpile data 4194 | -9/Mines | Build established: Scavenger-Mutant 4348 | -9/Mines | Discovered new exit (range 10) 4715 | -9/Mines | Core destroyed Last Messages --------------- Unit. 04620_ Dropped Firepult. 04623_ R-06 Scavenger destroyed. 04628_ Extracted 31 matter. 04633_ Acquired Rigged Fission Core. 04635_ U-05 Engineer lays Concrete. 04645_ Dropped Rigged Fission Core. 04646_ U-05 Engineer lays Concrete. 04653_ U-05 Engineer builds a Wall. 04662_ Dropped Lgt. Assault Rifle. 04662_ Acquired Firepult. 04675_ R-06 Scavenger collects Com. Wheel. 04678_ R-06 Scavenger collects Sml. Storage Unit. 04682_ R-06 Scavenger collects Hcp. Storage Unit. 04686_ R-06 Scavenger collects Com. Wheel. 04714_ Overheating: Lgt. Armor Plating damaged (-30). 04715_ Overheating: Core damaged (-42). Map ----- +----------------------------------------------------+ | #??????????????????????????????? | | ???????????????????????????????? | | ???????????????????????????????? | | ???????????? ##????????????????? | | ???????????? ########??????????? | | ##??? #### #########?????????? | | ###??##### ##?????????? | | ###??## ##?????????? | | ###?## ## < ##?????????? | | ###?##*## ??? ##?????????? | | ##### ##???????? ##?????????? | | ##### ##?????s??? ##?????????? | | % ##???????? ???????????? | | =########?????? #??????????? | | ###########? ?????????? | | ###########? ######???? | | ##?# #######??? | | ######## ##?# * ###??? | | ######## ##?# ##??? | | ##????## ##?## ##??? | | ##????## ##?### ###??? | | ##????## ##?## ###??? | | [!##????## ##?## ##??? | | ##???### ##### ##??? | | !##??#### ###### %!![ ##??? | | ####### ##### ## @###??? | | ###### ### ##########??? | | #### #########???? | | ### ###??????????? | | ### ####??????????? | | ## ###???????????? | | ##### #### ###???????????? | | ##### #### # #??????????? | | ## ###### ##??????????? | | ########## ##??????????? | | ## ##??###########??????????? | | ### ##??????#######??????????? | | ### #???????????????????????? | | ?## #???????????????????????? | | ?### ##???????????????????????? | | ?#######???????????????????????? | | ??#####????????????????????????? | | ???????????????????????????????? | | ???????????????????????????????? | | ???????????????????????????????? | | | | | | | | | | | +----------------------------------------------------+ Best States ------------- Heat Dissipation 25 Energy Generation 10 Energy Capacity 125 Matter Stores 300 Matter Capacity 300 Sight Range 16 Robot Scan Range 14 Terrain Scan Density 10 Armor Coverage 150 Core Shielding 20 Evasion (%) 40 Recoil Reduction 2 Item Schematics ----------------- None Robot Schematics ------------------ None Fabricated ------------ Nothing Alien Tech Used ----------------- None Achievements -------------- None Challenges ------------ None Game ------ Seed NeutrinoSubatomicShield Manual? 0 Play Time 00:58:42 Cumulative 50.0 hours Start 2024.04.13 @ 20:52:11 End 2024.04.13 @ 21:50:35 Sessions 1 Manual Loads 0 Difficulty Rogue Special Mode None Game No. 87 Rogue 87 Adventurer 0 Explorer 0 Win Type - Total 0 Types 0/0/0/0/0/0/0/0/0 Lore% 24 Gallery% 27 Achievement% 27 Wizard Run 0 Options --------- Layout 1 ASCII 0 Keyboard 0 Movement Mouse Keybinds 0 Fullscreen 2 Font 24/Smallcaps Map View 50x35 Zoom Use 0% Tactical HUD 1 Map Filters NONE Filters NONE Steam 1 RUN: 709a8fb0-0c57-407c-9bbb-16f325e1f93e